fUSD/lending_fUSD_20240115
["ID","MTS","AMOUNT","RATE_DAILY","PERIOD"]
[311711606,1705348251231,-549.21669941,0.00032876,2]
[311711607,1705348251241,-969.17,0.00032876,2]
[311711608,1705348251251,-500.0,0.00032876,2]
[311711609,1705348251261,-865.13,0.00032876,2]
[311711610,1705348251271,-678.36,0.00032876,2]
[311711611,1705348251283,-500.0,0.00032876,2]
[311711612,1705348251293,-198.23344399,0.00032876,2]
[311711613,1705348251302,-526.8,0.00032876,2]
[311711614,1705348251312,-797.45,0.00032876,2]
[311711615,1705348251322,-715.15,0.00032876,2]
[311711616,1705348251332,-500.0,0.00032876,2]
[311711617,1705348251342,-500.0,0.00032876,2]
[311711618,1705348251352,-500.0,0.00032876,2]
[311711619,1705348251362,-500.0,0.00032876,2]
[311711620,1705348251375,-500.0,0.00032876,2]
[311711621,1705348251386,-500.0,0.00032876,2]
[311711622,1705348251396,-500.0,0.00032876,2]
[311711623,1705348251406,-503.52,0.00032876,2]
[311711624,1705348251415,-513.01396662,0.00032876,2]
[311711625,1705348251425,-500.0,0.00032876,2]
[311711626,1705348251436,-1074.01,0.00032876,2]
[311711627,1705348251445,-500.0,0.00032876,2]
[311711628,1705348251455,-572.74,0.00032876,2]
[311711629,1705348251466,-521.0798672,0.00032876,2]
[311711630,1705348251475,-500.0,0.00032876,2]
[311711631,1705348251485,-500.0,0.00032876,2]
[311711632,1705348251495,-500.0,0.00032876,2]
[311711633,1705348251505,-500.0,0.00032876,2]
[311711634,1705348251514,-500.0,0.00032876,2]
[311711635,1705348251525,-1992.72,0.00032876,2]
[311711636,1705348251534,-500.0,0.00032876,2]
[311711637,1705348251544,-611.12902735,0.00032876,2]
[311711638,1705348251554,-500.0,0.00032876,2]
[311711639,1705348251564,-500.0,0.00032876,2]
[311711640,1705348251573,-500.0,0.00032876,2]
[311711641,1705348251583,-615.62,0.00032876,2]
[311711642,1705348251592,-595.91,0.00032876,2]
[311711643,1705348251602,-933.54,0.00032876,2]
[311711644,1705348251611,-500.0,0.00032876,2]
[311711645,1705348251620,-500.0,0.00032876,2]
[311711646,1705348251630,-500.0,0.00032876,2]
[311711647,1705348251640,-500.0,0.00032876,2]
[311711648,1705348251649,-322.21206249,0.00032876,2]
[311711649,1705348251659,-1264.6,0.00032876,2]
[311711650,1705348251669,-775.85,0.00032876,2]
[311711651,1705348251678,-500.0,0.00032876,2]
[311711652,1705348251688,-1079.13,0.00032876,2]
[311711653,1705348251698,-500.0,0.00032876,2]
[311711654,1705348251707,-1497.1,0.00032876,2]
[311711655,1705348251717,-500.0,0.00032876,2]
[311711656,1705348251728,-500.0,0.00032876,2]
[311711657,1705348251739,-872.82,0.00032876,2]
[311711658,1705348251751,-500.0,0.00032876,2]
[311711659,1705348251761,-500.0,0.00032876,2]
[311711660,1705348251770,-500.0,0.00032876,2]
[311711661,1705348251780,-500.0,0.00032876,2]
[311711662,1705348251790,-500.0,0.00032876,2]
[311711663,1705348251801,-500.0,0.00032876,2]
[311711664,1705348251811,-500.0,0.00032876,2]
[311711665,1705348251821,-500.0,0.00032876,2]
[311711666,1705348251947,-500.0,0.00032876,2]
[311711667,1705348251957,-324.51181485,0.00032876,2]
[311711668,1705348251967,-500.0,0.00032876,2]
[311711669,1705348251976,-500.0,0.00032876,2]
[311711670,1705348251987,-500.0,0.00032876,2]
[311711671,1705348251996,-500.0,0.00032876,2]
[311711672,1705348252005,-496.05279468,0.00032876,2]
[311711673,1705348252014,-1117.28,0.00032876,2]
[311711674,1705348252022,-637.66,0.00032876,2]
[311711675,1705348252031,-693.95,0.00032876,2]
[311711676,1705348252041,-500.0,0.00032876,2]
[311711677,1705348252050,-500.0,0.00032876,2]
[311711678,1705348252059,-196.81654054,0.00032876,2]
[311711679,1705348252068,-500.0,0.00032876,2]
[311711680,1705348252078,-1680.73,0.00032876,2]
[311711681,1705348252087,-892.63,0.00032876,2]
[311711682,1705348252096,-603.29,0.00032876,2]
[311711683,1705348252105,-500.0,0.00032876,2]
[311711684,1705348252115,-500.0,0.00032876,2]
[311711685,1705348252124,-582.31,0.00032876,2]
[311711686,1705348252134,-505.33629413,0.00032876,2]
[311711687,1705348252143,-506.72192069,0.00032876,2]
[311711688,1705348252152,-845.12,0.00032876,2]
[311711689,1705348252162,-500.0,0.00032876,2]
[311711690,1705348252171,-500.0,0.00032876,2]
[311711691,1705348252180,-500.0,0.00032876,2]
[311711692,1705348252190,-500.0,0.00032876,2]
[311711693,1705348252199,-1653.17,0.00032876,2]
[311711694,1705348252208,-763.89,0.00032876,2]
[311711695,1705348252217,-918.21,0.00032876,2]
[311711696,1705348252227,-1036.55,0.00032876,2]
[311711697,1705348252238,-874.88,0.00032876,2]
[311711698,1705348252248,-500.0,0.00032876,2]
[311711699,1705348252258,-500.0,0.00032876,2]
[311711700,1705348252267,-500.0,0.00032876,2]
[311711701,1705348252276,-521.01361274,0.00032876,2]
[311711702,1705348252286,-500.0,0.00032876,2]
[311711703,1705348252294,-701.94,0.00032876,2]
[311711704,1705348252303,-500.0,0.00032876,2]
[311711705,1705348252312,-505.27806096,0.00032876,2]
[311711706,1705348252321,-500.0,0.00032876,2]
[311711707,1705348252331,-1141.75,0.00032876,2]
[311711708,1705348252340,-500.0,0.00032876,2]
[311711709,1705348252350,-500.0,0.00032876,2]
[311711710,1705348252359,-500.0,0.00032876,2]
[311711711,1705348252369,-512.85,0.00032876,2]
[311711712,1705348252383,-500.0,0.00032876,2]
[311711713,1705348252393,-500.0,0.00032876,2]
[311711714,1705348252402,-500.0,0.00032876,2]
[311711715,1705348252411,-490.58765589,0.00032876,2]
[311711716,1705348252421,-1472.59,0.00032876,2]
[311711717,1705348252431,-500.0,0.00032876,2]
[311711718,1705348252441,-500.0,0.00032876,2]
[311711719,1705348252450,-500.0,0.00032876,2]
[311711720,1705348252460,-500.0,0.00032876,2]
[311711721,1705348252470,-500.0,0.00032876,2]
[311711722,1705348252479,-500.0,0.00032876,2]
[311711723,1705348252489,-500.0,0.00032876,2]
[311711724,1705348252499,-500.0,0.00032876,2]
[311711725,1705348252507,-995.85,0.00032876,2]
[311711726,1705348252517,-1609.51,0.00032876,2]
[311711727,1705348252526,-1078.14,0.00032876,2]
[311711728,1705348252535,-500.0,0.00032876,2]
[311711729,1705348252545,-976.4,0.00032876,2]
[311711730,1705348252555,-1451.63,0.00032876,2]
[311711731,1705348252564,-664.64,0.00032876,2]
[311711732,1705348252573,-500.0,0.00032876,2]
[311711733,1705348252583,-500.0,0.00032876,2]
[311711734,1705348252593,-580.64,0.00032876,2]
[311711735,1705348252604,-502.67883005,0.00032876,2]
[311711736,1705348252613,-500.0,0.00032876,2]
[311711737,1705348252622,-500.0,0.00032876,2]
[311711738,1705348252633,-500.73612363,0.00032876,2]
[311711739,1705348252642,-500.0,0.00032876,2]
[311711740,1705348252651,-922.5,0.00032876,2]
[311711741,1705348252660,-1221.34,0.00032876,2]
[311711742,1705348252669,-1069.51,0.00032876,2]
[311711743,1705348252678,-500.0,0.00032876,2]
[311711744,1705348252688,-576.43974707,0.00032876,2]
[311711745,1705348252698,-500.0,0.00032876,2]
[311711746,1705348252707,-500.0,0.00032876,2]
[311711747,1705348252716,-500.0,0.00032876,2]
[311711748,1705348252725,-500.0,0.00032876,2]
[311711749,1705348252735,-303.789126,0.00032876,2]
[311711750,1705348252744,-500.0,0.00032876,2]
[311711751,1705348252754,-500.0,0.00032876,2]
[311711752,1705348252763,-500.0,0.00032876,2]
[311711753,1705348252772,-500.0,0.00032876,2]
[311711754,1705348252781,-946.77,0.00032876,2]
[311711755,1705348252791,-500.0,0.00032876,2]
[311711756,1705348252801,-500.0,0.00032876,2]
[311711757,1705348252810,-582.54,0.00032876,2]
[311711758,1705348252820,-500.0,0.00032876,2]
[311711759,1705348252829,-500.0,0.00032876,2]
[311711760,1705348252838,-575.92,0.00032876,2]
[311711761,1705348252848,-1146.53,0.00032876,2]
[311711762,1705348252858,-500.0,0.00032876,2]
[311711763,1705348252867,-500.0,0.00032876,2]
[311711764,1705348252877,-500.0,0.00032876,2]
[311711765,1705348252886,-198.97889327,0.00032876,2]
[311711766,1705348252895,-500.0,0.00032876,2]
[311711767,1705348252905,-500.0,0.00032876,2]
[311711768,1705348252914,-629.4,0.00032876,2]
[311711769,1705348252924,-500.0,0.00032876,2]
[311711770,1705348252933,-500.0,0.00032876,2]
[311711771,1705348252943,-897.19,0.00032876,2]
[311711772,1705348252952,-500.0,0.00032876,2]
[311711773,1705348252961,-500.0,0.00032876,2]
[311711774,1705348252971,-811.43,0.00032876,2]
[311711775,1705348252982,-500.0,0.00032876,2]
[311711776,1705348252991,-500.0,0.00032876,2]
[311711777,1705348253000,-500.0,0.00032876,2]
[311711778,1705348253009,-513.18747933,0.00032876,2]
[311711779,1705348253019,-1000.0,0.00032876,2]
[311711780,1705348253028,-500.0,0.00032876,2]
[311711781,1705348253038,-519.0657131,0.00032876,2]
[311711782,1705348253050,-500.0,0.00032876,2]
[311711783,1705348253067,-516.68,0.00032876,2]
[311711784,1705348253077,-500.0,0.00032876,2]
[311711785,1705348253086,-627.25,0.00032876,2]
[311711786,1705348253095,-1413.45,0.00032876,2]
[311711787,1705348253105,-500.0,0.00032876,2]
[311711788,1705348253114,-500.0,0.00032876,2]
[311711789,1705348253124,-500.0,0.00032876,2]
[311711790,1705348253133,-1244.9,0.00032876,2]
[311711791,1705348253142,-968.45,0.00032876,2]
[311711792,1705348253151,-500.0,0.00032876,2]
[311711793,1705348253161,-584.58882544,0.00032876,2]
[311711794,1705348253202,-30.32117456,0.00032876,2]
[311711795,1705348253211,-500.0,0.00032876,2]
[311711796,1705348253221,-505.31966819,0.00032876,2]
[311711797,1705348253230,-500.0,0.00032876,2]
[311711798,1705348253241,-274.41334195,0.00032876,2]
[311711799,1705348253288,-225.58665805,0.00032876,2]
[311711800,1705348253298,-500.0,0.00032876,2]
[311711801,1705348253307,-227.11562114,0.00032876,2]
[311711802,1705348254134,-1450.16783378,0.00022903,2]
[311711803,1705348254239,-1365.35041906,0.00022903,2]
[311711804,1705348254251,-1023.7,0.00022903,2]
[311711805,1705348254263,-9449.00676026,0.00022903,2]
[311711806,1705348254274,-532.98005436,0.00022903,2]
[311711807,1705348254286,-6813.26731235,0.00022903,2]
[311711808,1705348254298,-96053.96417523,0.00022903,2]
[311711809,1705348254425,-714.2364726,0.00022903,2]
[311711810,1705348254437,-281.13637335,0.00022903,2]
[311711811,1705348254448,-431.60659171,0.00022903,2]
[311711812,1705348254460,-845.04787072,0.00022903,2]
[311711813,1705348254472,-254.86173603,0.00022903,2]
[311711814,1705348254484,-2943.40772388,0.00022903,2]
[311711815,1705348258925,1000.0,0.00014662,2]
[311711816,1705348275951,1000.0,0.00021758,2]
[311711817,1705348299973,1000.0,0.00021758,2]
[311711818,1705348317959,1000.0,0.00021758,2]
[311711824,1705348336002,500.0,0.00022,2]
[311711825,1705348342063,1000.0,0.0002067,2]
[311711826,1705348358468,1000.0,0.0002067,2]
[311711827,1705348376059,1000.0,0.0002067,2]
[311711830,1705348394067,1000.0,0.00019637,2]
[311711831,1705348420852,1000.0,0.00019637,2]
[311711832,1705348436075,1000.0,0.00018655,2]
[311711833,1705348462406,1000.0,0.00018655,2]
[311711834,1705348482397,1000.0,0.00018655,2]
[311711835,1705348500521,1000.0,0.00017722,2]
[311711836,1705348520402,1000.0,0.00017722,2]
[311711837,1705348529038,150.0,0.00021999,2]
[311711838,1705348536408,1000.0,0.00017722,2]
[311711839,1705348554596,1000.0,0.00020899,2]
[311711840,1705348570398,1000.0,0.00020899,2]
[311711853,1705348593036,1000.0,0.00020899,2]
[311711854,1705348632504,1000.0,0.00019854,2]
[311711855,1705348652518,1000.0,0.00019854,2]
[311711856,1705348670945,1000.0,0.00018861,2]
[311711857,1705348692510,1000.0,0.00018861,2]
[311711858,1705348712621,1000.0,0.00018861,2]
[311711859,1705348728538,1000.0,0.00017918,2]
[311711860,1705348741610,3185.21463735,0.00021985,2]
[311711861,1705348748511,1000.0,0.00017918,2]
[311711862,1705348772517,1000.0,0.00017022,2]
[311711863,1705348788526,1000.0,0.00017022,2]
[311711864,1705348804537,1000.0,0.00017022,2]
[311711865,1705348811073,250.0,0.000205,2]
[311711866,1705348826770,1000.0,0.00016171,2]
[311711867,1705348844644,1000.0,0.00016171,2]
[311711868,1705348864526,1000.0,0.00016171,2]
[311711869,1705348885092,1000.0,0.00015362,2]
[311711870,1705348888660,486.39,0.000203,2]
[311711871,1705348900558,1000.0,0.00015362,2]
[311711872,1705348920512,947.0248431,0.0003,90]
[311711873,1705348920557,1000.0,0.00015362,2]
[311711874,1705348924485,418.96973772,0.00021985,2]
[311711875,1705348938834,1000.0,0.00014594,2]
[311711876,1705348947352,176.2,0.00022,2]
[311711877,1705348956541,1000.0,0.00014594,2]
[311711878,1705348963565,256.71,0.00022,2]
[311711879,1705348974572,723.61,0.00021918,2]
[311711880,1705348980549,1000.0,0.00014594,2]
[311711881,1705349000539,1000.0,0.000209,2]
[311711882,1705349004037,200.0,0.00021918,2]
[311711883,1705349024537,1000.0,0.000209,2]
[311711887,1705349048541,1000.0,0.00019855,2]
[311711888,1705349068707,1000.0,0.00019855,2]
[311711889,1705349081664,1933.36,0.00021918,2]
[311711890,1705349092554,1000.0,0.00019855,2]
[311711891,1705349101408,158.24,0.00021952,2]
[311711892,1705349112602,1000.0,0.00018862,2]
[311711893,1705349114021,150.0,0.00020688,2]
[311711894,1705349131066,332.99,0.00021728,2]
[311711895,1705349131287,332.99,0.00021843,2]
[311711896,1705349131507,332.99,0.00021957,2]
[311711897,1705349131922,332.99,0.00022071,2]
[311711898,1705349132553,1000.0,0.00018862,2]
[311711899,1705349150571,1000.0,0.00018862,2]
[311711900,1705349156225,236.70154545,0.00021903,2]
[311711901,1705349168559,1000.0,0.00017919,2]
[311711902,1705349190634,1000.0,0.00017919,2]
[311711903,1705349206556,1000.0,0.00017023,2]
[311711904,1705349213383,9266.71,0.00021646,2]
[311711905,1705349226561,1000.0,0.00017023,2]
[311711908,1705349244595,1000.0,0.00017023,2]
[311711914,1705349260568,1000.0,0.00016172,2]
[311711915,1705349268223,154.04137752,0.00021903,2]
[311711924,1705349278582,1000.0,0.00016172,2]
[311711933,1705349297322,1000.0,0.00016172,2]
[311711937,1705349313542,171.99,0.00017363,2]
[311711941,1705349317115,2240.94,0.00021717,2]
[311711942,1705349317685,1982.44702751,0.00021984,2]
[311711943,1705349322189,1000.0,0.00015363,2]
[311711946,1705349344591,1000.0,0.00015363,2]
[311711954,1705349364583,1000.0,0.00015363,2]
[311711959,1705349384672,1000.0,0.00014595,2]
[311711960,1705349388244,23900.0,0.00021672,2]
[311711961,1705349400309,248.61163847,0.00022101,2]
[311711962,1705349400599,1000.0,0.00014595,2]
[311711963,1705349403685,1043.44502482,0.00022101,2]
[311711964,1705349407753,1199.24599083,0.00021984,2]
[311711965,1705349411179,171.19,0.00021681,2]
[311711966,1705349411668,156.55,0.00021843,2]
[311711967,1705349411898,156.55,0.00022071,2]
[311711968,1705349413158,200.98286647,0.00021961,2]
[311711969,1705349418600,1000.0,0.00020885,2]
[311711970,1705349419743,202.57156383,0.00022101,2]
[311711980,1705349432441,-312.00896411,0.00022102,2]
[311711981,1705349432450,-1569.0901445,0.00022102,2]
[311711982,1705349432462,-726.93480407,0.00022102,2]
[311711983,1705349432471,-404.10391545,0.00022102,2]
[311711984,1705349432482,-79.21068827,0.00022103,2]
[311711985,1705349432510,-1056.80861055,0.00022103,2]
[311711986,1705349432520,-363.88006273,0.00022104,2]
[311711987,1705349432529,-150.0,0.00022135,2]
[311711988,1705349432539,-4899.17469116,0.00022136,2]
[311711989,1705349432576,-495.90382304,0.00022136,2]
[311711990,1705349432585,-256.71,0.00022137,2]
[311711991,1705349432595,-228.53178891,0.00022186,2]
[311711992,1705349432607,-104.45821109,0.00022186,2]
[311711993,1705349432616,-204.91156173,0.00022222,2]
[311711994,1705349432629,-295.07843827,0.00022222,2]
[311711995,1705349432639,-3367.91,0.00022222,2]
[311711996,1705349432649,-150.99,0.00022222,2]
[311711997,1705349432658,-263.41494934,0.00022274,2]
[311711998,1705349432668,-155.43739986,0.00022298,2]
[311711999,1705349432678,-156.55,0.00022299,2]
[311712000,1705349432687,-332.99,0.000223,2]
[311712001,1705349432697,-158.24,0.00022328,2]
[311712002,1705349432707,-332.99,0.00022415,2]
[311712003,1705349432716,-156.55,0.00022526,2]
[311712004,1705349432727,-332.99,0.00022529,2]
[311712005,1705349432738,-176.2,0.00022548,2]
[311712006,1705349432747,-486.39,0.00022564,2]
[311712007,1705349432758,-155.43739984,0.00022599,2]
[311712008,1705349432768,-1333.19880575,0.000226,2]
[311712009,1705349432777,-1000.0,0.00022614,2]
[311712010,1705349432786,-332.99,0.00022643,2]
[311712011,1705349432796,-436.31723575,0.00022672,2]
[311712012,1705349432805,-170.55472325,0.00022672,2]
[311712013,1705349432815,-492.66491416,0.00022672,2]
[311712014,1705349432825,-2240.94,0.00022695,2]
[311712015,1705349432834,-158.24,0.00022703,2]
[311712016,1705349432845,-156.55,0.00022754,2]
[311712017,1705349432854,-332.99,0.00022758,2]
[311712018,1705349432863,-830.7443,0.00022802,2]
[311712019,1705349432873,-179.22851331,0.00022803,2]
[311712020,1705349432882,-567.48000177,0.00022803,2]
[311712021,1705349432892,-2043.62487227,0.00022803,2]
[311712022,1705349432901,-157.34119209,0.00022803,2]
[311712023,1705349432910,-231.47528192,0.00022803,2]
[311712024,1705349432920,-1226.36936488,0.00022803,2]
[311712025,1705349432929,-782.9824,0.00022803,2]
[311712026,1705349432938,-1576.1329117,0.0002283,2]
[311712027,1705349432948,-567.48000177,0.00022852,2]
[311712028,1705349432957,-2043.62487227,0.00022852,2]
[311712029,1705349432967,-231.47528191,0.00022852,2]
[311712030,1705349432978,-1226.36936486,0.00022852,2]
[311712031,1705349432986,-332.99,0.00022872,2]
[311712032,1705349432996,-15000.0,0.00022875,2]
[311712033,1705349433005,-42620.62290934,0.00022899,2]
[311712034,1705349433014,-165.92298531,0.00022899,2]
[311712035,1705349433023,-223.64175143,0.000229,2]
[311712036,1705349433033,-155.43739984,0.000229,2]
[311712037,1705349433042,-152.52963997,0.000229,2]
[311712038,1705349433052,-179.22851331,0.000229,2]
[311712039,1705349433061,-567.48000177,0.000229,2]
[311712040,1705349433070,-460.7504333,0.000229,6]
[311712041,1705349433080,-157.34119209,0.000229,2]
[311712042,1705349433089,-2043.62487227,0.000229,2]
[311712043,1705349433098,-231.47528191,0.000229,2]
[311712044,1705349433108,-1226.36936486,0.000229,2]
[311712045,1705349433117,-303.08787125,0.000229,2]
[311712046,1705349433126,-229.44999818,0.000229,2]
[311712047,1705349433136,-342.61663816,0.00022901,2]
[311712048,1705349433146,-386.45072727,0.00022901,2]
[311712049,1705349433155,-155.0,0.00022901,2]
[311712050,1705349433165,-287.37167413,0.00022901,2]
[311712051,1705349433174,-404.12442134,0.00022901,2]
[311712052,1705349433183,-486.28507678,0.00022901,2]
[311712053,1705349433193,-1873.84,0.00022901,2]
[311712054,1705349433205,-155.0,0.00022901,2]
[311712055,1705349433214,-4477.84140557,0.00022901,2]
[311712056,1705349433225,-541.98350192,0.00022901,2]
[311712057,1705349433234,-155.0,0.00022901,2]
[311712058,1705349433244,-5264.33667276,0.00022901,2]
[311712059,1705349433253,-509.79874139,0.00022901,2]
[311712060,1705349433263,-203.37489632,0.00022901,2]
[311712061,1705349433272,-5007.65404292,0.00022901,2]
[311712062,1705349433283,-1463.62047272,0.00022901,2]
[311712063,1705349433293,-215.00753688,0.00022901,2]
[311712064,1705349433302,-676.33503808,0.00022901,2]
[311712071,1705349433542,-375.86279312,0.00022901,2]
[311712075,1705349433575,-253.92586632,0.00022901,2]
[311712077,1705349433585,-303.43373299,0.00022901,2]
[311712078,1705349433594,-48024.56731772,0.00022902,2]
[311712088,1705349433695,-727.69660047,0.00022902,2]
[311712090,1705349433708,-1926.7925768,0.00022902,2]
[311712095,1705349433744,-292.97642527,0.00022902,2]
[311712096,1705349433756,-628.5781616,0.00022902,2]
[311712097,1705349433767,-1133.12918751,0.00022902,2]
[311712098,1705349433779,-550.39902138,0.00022902,2]
[311712104,1705349437642,-272.07541425,0.00022802,2]
[311712105,1705349437701,-998.59891962,0.00022802,2]
[311712106,1705349437755,-285.83269541,0.00022802,2]
[311712107,1705349437765,-33.85912409,0.00022901,2]
[311712108,1705349437777,-168.71243974,0.00022901,2]
[311712109,1705349437787,-782.54888298,0.00022902,2]
[311712110,1705349437798,-455.23866117,0.00022902,2]
[311712111,1705349437811,-350.26905264,0.00022902,2]
[311712112,1705349437823,-3279.9314489,0.00022902,2]
[311712113,1705349437870,-978169.79610889,0.00022902,2]
[311712114,1705349437880,-1056454.86622916,0.00022902,2]
[311712115,1705349437890,-122841.26667667,0.00022903,2]
[311712116,1705349437899,-100000.0,0.00022903,2]
[311712117,1705349437908,-156.55,0.00022982,2]
[311712118,1705349437917,-332.99,0.00022986,2]
[311712119,1705349437927,-727.69660047,0.00022998,2]
[311712120,1705349437939,-301.07325001,0.00022999,2]
[311712121,1705349437949,-2080.3,0.00022999,2]
[311712122,1705349437958,-300.0,0.00022999,2]
[311712123,1705349437967,-300.0,0.00022999,2]
[311712124,1705349437978,-300.0,0.00022999,2]
[311712125,1705349437988,-300.0,0.00022999,2]
[311712126,1705349437997,-300.0,0.00022999,2]
[311712127,1705349438006,-300.0,0.00022999,2]
[311712128,1705349438018,-7245922.70455729,0.00023,2]
[311712129,1705349438028,-560083.27018381,0.00023,2]
[311712130,1705349438037,-189.97,0.00023,2]
[311712132,1705349438046,-1882.47,0.00023014,2]
[311712134,1705349438056,-401.27,0.00023014,2]
[311712136,1705349438064,-300.0,0.00023034,2]
[311712138,1705349438073,-266.42,0.00023077,2]
[311712140,1705349438082,-158.24,0.00023079,2]
[311712142,1705349438092,-176.2,0.00023096,2]
[311712143,1705349438101,-332.99,0.00023101,2]
[311712146,1705349438110,-332.99,0.00023215,2]
[311712148,1705349438119,-210.7290097,0.00023288,4]
[311712150,1705349438128,-410.08270616,0.00023288,4]
[311712152,1705349438137,-436.28844132,0.00023288,4]
[311712153,1705349438146,-152.62410864,0.00023288,4]
[311712155,1705349438155,-214.61869835,0.00023288,4]
[311712158,1705349438165,-176.48784832,0.00023288,2]
[311712160,1705349438175,-159.23431258,0.00023288,2]
[311712161,1705349438184,-445.85607521,0.00023288,2]
[311712164,1705349438197,-266.42,0.00023305,2]
[311712166,1705349438206,-332.99,0.00023329,2]
[311712168,1705349438215,-332.99,0.00023444,2]
[311712170,1705349438225,-158.24,0.00023454,2]
[311712172,1705349438235,-171.49,0.00023488,2]
[311712174,1705349438244,-266.42,0.00023534,2]
[311712176,1705349438253,-332.99,0.00023558,2]
[311712177,1705349438262,-171.49,0.00023611,2]
[311712180,1705349438272,-351.98,0.00023644,2]
[311712182,1705349438281,-332.99,0.00023672,2]
[311712184,1705349438291,-2240.94,0.00023674,2]
[311712186,1705349438300,-171.49,0.00023735,2]
[311712188,1705349438309,-266.42,0.00023762,2]
[311712190,1705349438319,-332.99,0.00023787,2]
[311712192,1705349438328,-158.24,0.0002383,2]
[311712194,1705349438338,-171.49,0.00023859,2]
[311712196,1705349438347,-332.99,0.00023901,2]
[311712198,1705349438356,-171.49,0.00023982,2]
[311712200,1705349438366,-266.42,0.00023991,2]
[311712202,1705349438375,-431.11450683,0.00024,2]
[311712204,1705349438385,-155.0,0.00024,2]
[311712206,1705349438394,-200.94414737,0.00024,2]
[311712208,1705349438403,-310.52776489,0.000241,2]
[311712217,1705349438498,-171.49,0.00024106,2]
[311712219,1705349438507,-158.24,0.00024205,2]
[311712221,1705349438516,-266.42,0.00024219,2]
[311712223,1705349438525,-171.49,0.00024229,2]
[311712225,1705349438534,-167.0,0.00024297,2]
[311712227,1705349438543,-210.0,0.00024349,2]
[311712228,1705349438551,-171.49,0.00024353,2]
[311712230,1705349438561,-300.0,0.00024404,2]
[311712232,1705349438570,-3119.28,0.00024428,2]
[311712235,1705349438579,-266.42,0.00024447,2]
[311712236,1705349438589,-171.49,0.00024477,2]
[311712238,1705349438599,-158.24,0.0002458,2]
[311712240,1705349438608,-171.49,0.000246,2]
[311712242,1705349438619,-2240.94,0.00024652,2]
[311712244,1705349438628,-208.76466007,0.00024658,2]
[311712246,1705349438638,-250.0,0.00024658,2]
[311712248,1705349438647,-266.42,0.00024676,2]
[311712250,1705349438656,-171.49,0.00024724,2]
[311712253,1705349438667,-4006.08647569,0.000248,2]
[311712255,1705349438676,-486.39,0.00024828,2]
[311712257,1705349438686,-171.49,0.00024848,2]
[311712259,1705349438695,-266.42,0.00024904,2]
[311712261,1705349438704,-158.24,0.00024956,2]
[311712263,1705349438713,-171.49,0.00024971,2]
[311712265,1705349438722,-182.69082076,0.00025,2]
[311712267,1705349438731,-1000.0,0.00025,2]
[311712268,1705349438740,-200.0,0.00025,2]
[311712270,1705349438749,-244713.25653517,0.00025,2]
[311712273,1705349438758,-1247.48098647,0.00025,2]
[311712274,1705349438767,-1582.64010755,0.00025,2]
[311712277,1705349438776,-303.27668532,0.00025,2]
[311712279,1705349438786,-1070.18909292,0.00025,2]
[311712281,1705349438795,-387.44495424,0.00025,2]
[311712283,1705349438804,-201.83579665,0.00025,2]
[311712284,1705349438814,-167.20178626,0.00025,2]
[311712287,1705349438823,-693.1186857,0.00025,2]
[311712289,1705349438832,-508.50114416,0.00025,2]
[311712291,1705349438841,-350.0,0.00025,3]